[Event "Danish Skakligaen 2024-25"]
[Site "Denmark"]
[Date "2024.11.02"]
[Round "1.3"]
[White "Sylvan, Jacob"]
[Black "Chatalbashev, Boris"]
[Result "1/2-1/2"]
[ECO "B06"]
[WhiteElo "2329"]
[BlackElo "2476"]
[Annotator "TA"]
[PlyCount "72"]
[EventDate "2024.11.02"]
[EventType "team-tourn"]
[EventCountry "DEN"]
[SourceTitle "playchess.com"]
[Source "ChessBase"]
[SourceQuality "1"]
[TimeControl "40/5400+30:1800+30"]

{[%evp 11,72,27,34,30,27,30,46,26,41,22,87,37,65,5,16,-17,18,5,12,0,112,105,104,0,0,0,0,0,68,77,79,10,7,7,71,98,89,78,84,84,81,-36,-53,-139,0,-56,0,0,0,0,0,0,0,0,0,0,0,0,0,0,0,0,0]} 1. e4 {[%emt 0:00:03]} g6 {[%emt 0:00:06]} 2. d4 {[%emt 0:00:08]} Bg7 {[%emt 0:00:04]} 3. Nc3 {[%emt 0:00:03]} d6 {[%emt 0:00:07]} 4. f4 {[%emt 0:00:20]} a6 {[%emt 0:00:06]} 5. Nf3 {[%emt 0:00:14]} b5 {[%emt 0:00:07]} 6. Bd3 {[%emt 0:00:41]} Nd7 {[%emt 0:00:07]} 7. a4 {[%emt 0:00:23]} b4 {[%emt 0:00:19]} 8. Ne2 {[%emt 0:00:04]} c5 {[%emt 0:00:47]} 9. c3 {[%emt 0:00:29] White is slightly better.} Bb7 {[%emt 0:05:16]} 10. cxb4 {[%emt 0:05:25]} cxb4 {[%emt 0:08:49] [#]} (10... cxd4 $1 $11 11. Nexd4 e5) 11. Qb3 {[%emt 0:01:44]} ({White should try} 11. a5 $1 $16) 11... Ngf6 {[%emt 0:01:06]} 12. Ng3 {[%emt 0:22:13]} ({Better is} 12. e5 $14) 12... a5 {[%emt 0:01:14]} 13. f5 {[%emt 0:07:50]} O-O {[%emt 0:05:50]} 14. O-O {[%emt 0:13:53]} Qb6 {[%emt 0:03:13] Threatens to win with ...Ne5.} 15. Kh1 {[%emt 0:03:36]} d5 {[%emt 0:09:47]} (15... Rae8 $11 {keeps the balance.}) 16. e5 $16 {[%emt 0:00:54]} Ne4 {[%emt 0:00:07]} 17. Bxe4 {[%emt 0:02:31]} (17. Bf4 $16) 17... dxe4 $11 {[%emt 0:00:07]} 18. Ng5 {[%emt 0:00:08] Black must now prevent Be3.} Qxd4 {[%emt 0:04:10]} 19. fxg6 $1 {[%emt 0:04:07] Strongly threatening Rd1.} Nxe5 {[%emt 0:35:21]} (19... Bxe5 $2 20. Nf5 (20. Nxh7 Bd5 $11) (20. Nxf7 Qd5 $18) (20. gxf7+ Kh8 $18) 20... Qd3 21. Nxe7+ Kh8 22. Nxf7+ Rxf7 23. Qxf7 $18) (19... hxg6 $2 20. N3xe4 Qxe5 (20... Bxe4 $2 21. Qh3 $18) 21. Qh3 $18) ({Black should play} 19... Bd5 $1 $11 20. Qd1 Qxd1 (20... Qxe5 $2 21. Rf5 $18) (20... Bxe5 $2 21. Qh5 $18) 21. Rxd1 e6 (21... Nb6 22. gxh7+ Kh8 23. Be3 $16) 22. gxf7+ Kh8) 20. Nf5 $36 {[%emt 0:07:09][%mdl 2048] White is in control. Chess con chili. White is more active. A dynamic duo of knights.} (20. gxf7+ Kh8 $18) 20... Qd3 {[%emt 0:00:08][%cal Rd3f1] [#]} 21. gxf7+ {[%emt 0:00:31]} (21. Qxd3 $1 $16 {White threatens Qh3 and mate.} exd3 22. gxf7+ Kh8 23. Nxg7 (23. Nxe7 $2 Ra6 $19) 23... Kxg7 24. Ne6+ Kg6 25. Bf4 (25. Nxf8+ Rxf8 26. Bf4 Nc4 $18) 25... Rxf7 26. Bxe5 Rxf1+ 27. Rxf1) 21... Kh8 $1 $11 {[%emt 0:04:44][%cal Bg8h8,Bh8g7,Bg7g6][%mdl 32]} 22. Qxd3 {[%emt 0:01:07]} exd3 {[%emt 0:01:44]} (22... Nxd3 $11 23. Nxg7 (23. Nxe7 $2 Ra6 $19) 23... Kxg7 24. Ne6+ Kg6) 23. Nxg7 $16 {[%emt 0:03:30]} (23. Nxe7 $2 Ra6 (23... h6 $2 24. Bf4 $17) 24. Nf5 Nxf7 25. Nxg7 Kxg7 $19) 23... Kxg7 {[%emt 0:00:08]} 24. Ne6+ {[%emt 0:00:10]} Kg6 {[%emt 0:00:03]} 25. Nxf8+ {[%emt 0:00:06]} Rxf8 {[%emt 0:00:04]} 26. Be3 {[%emt 0:01:45]} (26. Bf4 $16 Ng4 27. Rad1) 26... Nc4 $15 {[%emt 0:03:36]} 27. Ba7 {[%emt 0:19:56]} (27. Rae1 $1 $15) 27... d2 {[%emt 0:11:52]} ({Not} 27... Rxf7 28. Rfd1 $11) (27... Nxb2 $17 28. h4 d2 (28... Rxf7 $2 29. h5+ Kxh5 30. Rxf7 $18)) 28. b3 {[%emt 0:02:15]} (28. Rad1 $1 $11 b3 (28... Nxb2 $2 {too greedy.} 29. Rxd2 Ba6 30. Rf3 $18) (28... Rxf7 $2 {loses.} 29. Rxf7 Kxf7 30. b3 $18) 29. Rf4) 28... Nb2 {[%emt 0:00:24]} (28... Nd6 $1 $15 29. Kg1 Ne4) 29. Bd4 $11 {[%emt 0:00:10] The position is equal.} d1=Q {[%emt 0:00:20]} 30. Raxd1 {[%emt 0:00:10]} Nxd1 {[%emt 0:00:05]} 31. Rxd1 {[%emt 0:00:04]} Rxf7 {[%emt 0:03:18] KRB-KRB} 32. Kg1 {[%emt 0:00:44]} Be4 {[%emt 0:01:10]} 33. Rf1 {[%emt 0:01:38]} Rxf1+ {[%emt 0:00:39]} 34. Kxf1 {[%emt 0:00:04]} Bc2 {[%emt 0:00:05]} 35. Bb6 {[%emt 0:00:03]} Bxb3 {[%emt 0:00:06]} 36. Bxa5 {[%emt 0:00:04]} Bxa4 {[%emt 0:01:16] Weighted Error Value: White=0.27 (precise) /Black=0.27 (precise) .  Mistake:       	White=7     	Black=6      Inaccurate:     	White=1     	Black=2      OK:         	White=11    	Black=12     Best:        	White=6     	Black=1      Strong:       	White=1     	Black=1} 1/2-1/2

[Event "Danish Skakligaen 2024-25"]
[Site "Denmark"]
[Date "2024.11.02"]
[Round "1.3"]
[White "Christensen, Stefan"]
[Black "Sorensen, Jan"]
[Result "0-1"]
[ECO "C10"]
[WhiteElo "2199"]
[BlackElo "2370"]
[Annotator "RC"]
[PlyCount "96"]
[EventDate "2024.11.02"]
[EventType "team-tourn"]
[EventCountry "DEN"]
[SourceTitle "playchess.com"]
[Source "ChessBase"]
[SourceQuality "1"]
[TimeControl "40/5400+30:1800+30"]

1. e4 {[%emt 0:00:06]} e6 {[%emt 0:00:09]} 2. d4 {[%emt 0:00:19]} d5 {[%emt 0:00:04]} 3. Nc3 {[%emt 0:00:30]} Nc6 {[%emt 0:00:50]} 4. Nf3 {[%emt 0:03:41]} Nf6 {[%emt 0:00:13]} 5. exd5 {[%emt 0:14:39]} exd5 {[%emt 0:00:09]} 6. Bb5 {[%emt 0:05:46]} Bb4 {[%emt 0:01:06]} 7. O-O {[%emt 0:02:42]} O-O {[%emt 0:01:03]} 8. Bg5 {[%emt 0:01:58]} Bxc3 {[%emt 0:04:52]} 9. bxc3 {[%emt 0:00:19]} Qd6 {[%emt 0:00:09]} 10. Bxf6 {[%emt 0:14:13]} Qxf6 {[%emt 0:00:28]} 11. h3 {[%emt 0:01:30]} Bf5 {[%emt 0:08:45]} 12. Rb1 {[%emt 0:02:22]} b6 {[%emt 0:27:55]} 13. Re1 {[%emt 0:06:35]} Nd8 {[%emt 0:08:10]} 14. Ne5 {[%emt 0:01:46]} c6 {[%emt 0:02:34]} 15. Bd3 {[%emt 0:03:35]} Be6 {[%emt 0:18:14]} 16. Re3 {[%emt 0:01:46]} c5 {[%emt 0:02:48]} 17. dxc5 {[%emt 0:09:21]} bxc5 {[%emt 0:00:14]} 18. Rb5 {[%emt 0:05:40]} Rc8 {[%emt 0:00:43]} 19. Qe1 {[%emt 0:03:44]} Qh4 {[%emt 0:03:48]} 20. Ra5 {[%emt 0:02:29]} Rc7 {[%emt 0:00:58]} 21. Bf1 {[%emt 0:01:25]} Qe7 {[%emt 0:03:16]} 22. f4 {[%emt 0:01:36]} d4 {[%emt 0:02:39]} 23. Rg3 {[%emt 0:05:05]} f6 {[%emt 0:01:53]} 24. Nc4 {[%emt 0:02:19]} Nc6 {[%emt 0:03:43]} 25. Ra6 {[%emt 0:01:12]} Bc8 {[%emt 0:02:55]} 26. Qxe7 {[%emt 0:00:29]} Nxe7 {[%emt 0:00:04]} 27. Ra3 Rd8 {[%emt 0:01:34]} 28. cxd4 {[%emt 0:05:56]} cxd4 {[%emt 0:00:13]} 29. Bd3 {[%emt 0:00:49]} Be6 {[%emt 0:00:36]} 30. Nd2 {[%emt 0:01:21]} Nf5 {[%emt 0:00:43]} 31. Rf3 {[%emt 0:00:26]} Ne3 {[%emt 0:00:16]} 32. Nb3 {[%emt 0:01:18]} Nxc2 {[%emt 0:02:50]} 33. Bxc2 {[%emt 0:01:16]} Rxc2 {[%emt 0:00:03]} 34. Rd3 {[%emt 0:00:41]} Rc3 {[%emt 0:00:55]} 35. Nd2 {[%emt 0:00:24]} Rxd3 {[%emt 0:01:55]} 36. Rxd3 {[%emt 0:00:03]} Bxa2 {[%emt 0:00:28]} 37. Nf3 {[%emt 0:01:03]} Bc4 {[%emt 0:00:53]} 38. Rxd4 {[%emt 0:00:05]} Rxd4 {[%emt 0:00:03]} 39. Nxd4 {[%emt 0:00:12]} a5 {[%emt 0:00:19]} 40. Kf2 {[%emt 0:00:27]} a4 {[%emt 0:00:16]} 41. Nc2 {[%emt 0:30:53]} Kf7 {[%emt 0:31:18]} 42. g4 {[%emt 0:00:00]} g5 {[%emt 0:00:00]} 43. Kg3 {[%emt 0:00:00]} Ke6 {[%emt 0:00:00]} 44. h4 {[%emt 0:00:00]} h6 {[%emt 0:00:00]} 45. hxg5 {[%emt 0:00:00]} hxg5 {[%emt 0:00:00]} 46. Kf3 {[%emt 0:00:00]} Kd5 {[%emt 0:00:00]} 47. Ke3 {[%emt 0:00:00]} Bb3 {[%emt 0:00:00]} 48. fxg5 {[%emt 0:00:00]} fxg5 {[%emt 0:00:00]} 0-1

[Event "Danish Skakligaen 2024-25"]
[Site "Denmark"]
[Date "2024.11.02"]
[Round "1.4"]
[White "Aabling-Thomsen, Jakob"]
[Black "Jacobsen, Mikkel Manosri"]
[Result "1/2-1/2"]
[ECO "A06"]
[WhiteElo "2331"]
[BlackElo "2289"]
[Annotator "RC"]
[PlyCount "104"]
[EventDate "2024.11.02"]
[EventType "team-tourn"]
[EventCountry "DEN"]
[SourceTitle "playchess.com"]
[Source "ChessBase"]
[SourceQuality "1"]
[TimeControl "40/5400+30:1800+30"]

1. Nf3 {[%emt 0:00:05]} d5 {[%emt 0:00:10]} 2. g3 {[%emt 0:00:06]} g6 {[%emt 0:01:12]} 3. Bg2 {[%emt 0:00:53]} Bg7 {[%emt 0:00:07]} 4. c4 {[%emt 0:00:28]} dxc4 {[%emt 0:04:27]} 5. Na3 {[%emt 0:02:39]} e5 {[%emt 0:10:19]} 6. h4 {[%emt 0:03:53]} Nc6 {[%emt 0:13:13]} 7. Nxc4 {[%emt 0:01:46]} h6 {[%emt 0:01:56]} 8. d3 {[%emt 0:01:12]} Nge7 {[%emt 0:00:38]} 9. Bd2 {[%emt 0:02:08]} Be6 {[%emt 0:03:57]} 10. Bc3 {[%emt 0:02:17]} Bxc4 {[%emt 0:00:29]} 11. dxc4 {[%emt 0:00:05]} O-O {[%emt 0:00:08]} 12. Qc2 {[%emt 0:11:29]} Nf5 {[%emt 0:07:46]} 13. h5 {[%emt 0:05:38]} Qe7 {[%emt 0:12:07]} 14. O-O-O {[%emt 0:06:48]} e4 {[%emt 0:02:28]} 15. Bxg7 {[%emt 0:15:35]} exf3 {[%emt 0:07:03]} 16. Bxf8 {[%emt 0:07:39]} Qg5+ {[%emt 0:00:25]} 17. Kb1 {[%emt 0:01:31]} fxg2 {[%emt 0:00:32]} 18. Rh2 {[%emt 0:02:26]} Rxf8 {[%emt 0:05:28]} 19. Rxg2 {[%emt 0:02:49]} Qxh5 {[%emt 0:05:08]} 20. g4 {[%emt 0:00:26]} Qh3 {[%emt 0:00:05]} 21. Rgg1 {[%emt 0:00:26]} Nfe7 {[%emt 0:02:08]} 22. Qe4 {[%emt 0:08:46]} Qh4 {[%emt 0:03:14]} 23. Qe3 {[%emt 0:06:12]} Qg5 {[%emt 0:02:18]} 24. f4 {[%emt 0:00:30]} Qf6 {[%emt 0:00:39]} 25. Rh1 {[%emt 0:01:19]} g5 {[%emt 0:07:30]} 26. fxg5 {[%emt 0:03:13]} Qxg5 {[%emt 0:00:18]} 27. Qg3 {[%emt 0:04:42]} Nf5 {[%emt 0:05:34]} 28. Qc3 {[%emt 0:06:27]} Ne3 {[%emt 0:01:40]} 29. Rd3 {[%emt 0:00:30]} Nxg4 {[%emt 0:00:59]} 30. Ka1 {[%emt 0:01:11]} Nce5 {[%emt 0:00:49]} 31. Rdh3 {[%emt 0:00:14]} Rd8 {[%emt 0:01:22]} 32. a3 {[%emt 0:00:14]} Qf4 {[%emt 0:01:00]} 33. Rg1 {[%emt 0:00:33]} Kh7 {[%emt 0:00:52]} 34. Rhg3 {[%emt 0:00:52]} f5 {[%emt 0:00:26]} 35. Qb4 {[%emt 0:00:31]} Rd7 {[%emt 0:00:32]} 36. Qxb7 {[%emt 0:00:28]} Qxc4 {[%emt 0:00:40]} 37. Rc3 {[%emt 0:00:24]} Qd4 {[%emt 0:00:35]} 38. Rgc1 {[%emt 0:01:14]} c6 {[%emt 0:00:07]} 39. Qc8 {[%emt 0:00:03]} Ne3 {[%emt 0:00:43]} 40. Qf8 {[%emt 0:01:48]} Rf7 {[%emt 0:00:10]} 41. Qe8 {[%emt 0:30:30]} Rg7 {[%emt 0:13:19]} 42. Rb3 {[%emt 0:00:00]} Qd2 {[%emt 0:09:24]} 43. Rc5 {[%emt 0:00:00]} Nd7 {[%emt 0:09:24]} 44. Rcc3 {[%emt 0:00:00]} Rg1+ {[%emt 0:00:32]} 45. Ka2 {[%emt 0:00:00]} Qd1 {[%emt 0:00:05]} 46. Rb7 {[%emt 0:00:00]} Qb1+ {[%emt 0:00:18]} 47. Kb3 {[%emt 0:00:00]} Qd1+ {[%emt 0:00:21]} 48. Ka2 {[%emt 0:00:00]} Qb1+ {[%emt 0:00:57]} 49. Kb3 {[%emt 0:00:00]} Qd1+ {[%emt 0:00:04]} 50. Ka2 {[%emt 0:00:00]} Qb1+ {[%emt 0:00:05]} 51. Kb3 {[%emt 0:00:00]} Qd1+ {[%emt 0:00:05]} 52. Ka2 {[%emt 0:00:00]} Qb1+ {[%emt 0:00:07]} 1/2-1/2

[Event "Danish Skakligaen 2024-25"]
[Site "Denmark"]
[Date "2024.11.02"]
[Round "1.4"]
[White "Christensen, Tobias"]
[Black "Jorgensen, Brian Jorgen"]
[Result "1-0"]
[ECO "A14"]
[WhiteElo "2330"]
[BlackElo "2179"]
[Annotator "RC"]
[PlyCount "87"]
[EventDate "2024.11.02"]
[EventType "team-tourn"]
[EventCountry "DEN"]
[SourceTitle "playchess.com"]
[Source "ChessBase"]
[SourceQuality "1"]
[TimeControl "40/5400+30:1800+30"]

1. c4 {[%emt 0:00:04]} e6 {[%emt 0:00:22]} 2. Nf3 {[%emt 0:01:04]} d5 {[%emt 0:00:07]} 3. g3 {[%emt 0:01:27]} Nf6 {[%emt 0:00:08]} 4. Bg2 {[%emt 0:00:25]} Be7 {[%emt 0:01:34]} 5. O-O {[%emt 0:02:23]} O-O {[%emt 0:00:39]} 6. d3 {[%emt 0:01:44]} c5 {[%emt 0:01:34]} 7. Bf4 {[%emt 0:17:34]} Nc6 {[%emt 0:01:05]} 8. Ne5 {[%emt 0:01:03]} Nxe5 {[%emt 0:04:22]} 9. Bxe5 {[%emt 0:00:05]} d4 {[%emt 0:00:12]} 10. e3 {[%emt 0:23:14]} Nd7 {[%emt 0:03:32]} 11. exd4 {[%emt 0:00:59]} f6 {[%emt 0:00:14]} 12. Bf4 {[%emt 0:01:12]} cxd4 {[%emt 0:00:08]} 13. Bd2 {[%emt 0:15:34]} a5 {[%emt 0:01:05]} 14. Qe2 {[%emt 0:08:38]} e5 {[%emt 0:01:36]} 15. f4 {[%emt 0:01:58]} Bd6 {[%emt 0:13:20]} 16. Na3 {[%emt 0:03:24]} Ra6 {[%emt 0:07:47]} 17. Nb5 {[%emt 0:01:13]} Bb8 {[%emt 0:00:26]} 18. b4 {[%emt 0:06:20]} Re8 {[%emt 0:25:20]} 19. Rae1 {[%emt 0:05:21]} Nf8 {[%emt 0:02:27]} 20. f5 {[%emt 0:01:32]} Kh8 {[%emt 0:12:44]} 21. bxa5 {[%emt 0:00:47]} Bc7 {[%emt 0:00:36]} 22. Nxc7 {[%emt 0:02:17]} Qxc7 {[%emt 0:00:06]} 23. Qh5 {[%emt 0:01:51]} Rd8 {[%emt 0:02:20]} 24. Bd5 {[%emt 0:01:03]} Qe7 {[%emt 0:06:30]} 25. Rb1 {[%emt 0:00:27]} g6 {[%emt 0:00:24]} 26. fxg6 {[%emt 0:00:16]} Nxg6 {[%emt 0:00:07]} 27. Be4 {[%emt 0:00:57]} Nf8 {[%emt 0:02:10]} 28. Bb4 {[%emt 0:00:30]} Qg7 {[%emt 0:00:10]} 29. Kh1 {[%emt 0:00:39]} Ne6 30. Rxf6 {[%emt 0:00:10]} Ng5 {[%emt 0:06:00]} 31. Rxa6 {[%emt 0:00:38]} Nxe4 {[%emt 0:00:25]} 32. Ra8 {[%emt 0:01:04]} Nf2+ {[%emt 0:05:05]} 33. Kg2 {[%emt 0:00:05]} Nxd3 {[%emt 0:00:04]} 34. Rxc8 {[%emt 0:01:00]} Rxc8 {[%emt 0:00:16]} 35. Qf5 {[%emt 0:00:04]} Nf4+ {[%emt 0:00:46]} 36. Kh1 {[%emt 0:00:34]} Rg8 {[%emt 0:00:10]} 37. Bd6 {[%emt 0:00:15]} Ng6 {[%emt 0:00:11]} 38. Qe4 {[%emt 0:00:37]} Qf6 {[%emt 0:04:33]} 39. c5 {[%emt 0:00:05]} Ra8 {[%emt 0:00:02]} 40. Qxb7 {[%emt 0:01:18]} Rxa5 {[%emt 0:00:53]} 41. Qc8+ {[%emt 0:12:10]} Kg7 {[%emt 0:00:10]} 42. Qd7+ {[%emt 0:01:39]} Kh6 {[%emt 0:00:55]} 43. Qh3+ {[%emt 0:00:47]} Kg5 {[%emt 0:00:13]} 44. Rf1 {[%emt 0:00:46]} 1-0

[Event "Danish Skakligaen 2024-25"]
[Site "Denmark"]
[Date "2024.11.02"]
[Round "1.4"]
[White "Meskenas, Paulius"]
[Black "Licznerski, Lukasz"]
[Result "1/2-1/2"]
[ECO "B15"]
[WhiteElo "2264"]
[BlackElo "2422"]
[Annotator "RC"]
[PlyCount "60"]
[EventDate "2024.11.02"]
[EventType "team-tourn"]
[EventCountry "DEN"]
[SourceTitle "playchess.com"]
[Source "ChessBase"]
[SourceQuality "1"]
[TimeControl "40/5400+30:1800+30"]

1. e4 {[%emt 0:00:03]} c6 {[%emt 0:00:04]} 2. d4 {[%emt 0:00:05]} d5 {[%emt 0:00:06]} 3. Nc3 {[%emt 0:00:05]} dxe4 {[%emt 0:00:07]} 4. Nxe4 {[%emt 0:00:09]} Nf6 {[%emt 0:00:19]} 5. Nxf6+ {[%emt 0:00:12]} exf6 {[%emt 0:00:03]} 6. c3 {[%emt 0:00:09]} Bd6 {[%emt 0:00:09]} 7. Bd3 {[%emt 0:00:08]} O-O {[%emt 0:01:08]} 8. Qc2 {[%emt 0:00:25]} Re8+ {[%emt 0:00:10]} 9. Ne2 {[%emt 0:00:07]} h5 {[%emt 0:00:16]} 10. O-O {[%emt 0:06:14]} h4 {[%emt 0:02:01]} 11. h3 {[%emt 0:00:10]} Nd7 {[%emt 0:01:14]} 12. Bf4 {[%emt 0:12:27]} Nf8 {[%emt 0:00:22]} 13. Bxd6 {[%emt 0:01:26]} Qxd6 {[%emt 0:00:04]} 14. c4 {[%emt 0:02:10]} Bd7 {[%emt 0:02:08]} 15. Rad1 {[%emt 0:02:27]} Re7 {[%emt 0:00:18]} 16. d5 {[%emt 0:13:49]} cxd5 {[%emt 0:11:26]} 17. cxd5 {[%emt 0:01:15]} Ng6 {[%emt 0:01:48]} 18. Bxg6 {[%emt 0:11:57]} fxg6 {[%emt 0:00:18]} 19. Nc3 {[%emt 0:00:06]} g5 {[%emt 0:05:02]} 20. Rd4 {[%emt 0:02:03]} Rae8 {[%emt 0:06:19]} 21. Qd2 {[%emt 0:01:35]} Re5 {[%emt 0:29:33]} 22. f3 {[%emt 0:04:29]} Qb6 {[%emt 0:10:18]} 23. Kh1 {[%emt 0:01:07]} Re1 {[%emt 0:03:27]} 24. Rxe1 {[%emt 0:08:48]} Rxe1+ {[%emt 0:00:16]} 25. Qxe1 {[%emt 0:00:15]} Qxd4 {[%emt 0:00:03]} 26. Qe7 {[%emt 0:03:36]} Qd2 {[%emt 0:01:27]} 27. Qxd7 {[%emt 0:05:22]} Qe1+ {[%emt 0:00:07]} 28. Kh2 {[%emt 0:00:05]} Qg3+ {[%emt 0:00:04]} 29. Kh1 {[%emt 0:00:06]} Qe1+ {[%emt 0:00:04]} 30. Kh2 {[%emt 0:00:05]} Qg3+ {[%emt 0:00:03]} 1/2-1/2

[Event "Danish Skakligaen 2024-25"]
[Site "Denmark"]
[Date "2024.11.02"]
[Round "1.4"]
[White "Thorsen, Adrian Stenstrop"]
[Black "Kristensen, Kaare Hove"]
[Result "1/2-1/2"]
[ECO "A13"]
[WhiteElo "2206"]
[BlackElo "2307"]
[Annotator "RC"]
[PlyCount "83"]
[EventDate "2024.11.02"]
[EventType "team-tourn"]
[EventCountry "DEN"]
[SourceTitle "playchess.com"]
[Source "ChessBase"]
[SourceQuality "1"]
[TimeControl "40/5400+30:1800+30"]

1. Nf3 {[%emt 0:00:18]} Nf6 2. g3 {[%emt 0:02:23]} d5 {[%emt 0:04:25]} 3. c4 {[%emt 0:01:11]} dxc4 {[%emt 0:06:02]} 4. Bg2 {[%emt 0:09:45]} e6 {[%emt 0:01:10]} 5. Qc2 {[%emt 0:06:36]} c5 {[%emt 0:08:53]} 6. O-O {[%emt 0:07:37]} Nbd7 {[%emt 0:01:56]} 7. Qxc4 {[%emt 0:09:27]} Be7 {[%emt 0:04:29]} 8. Rd1 {[%emt 0:02:37]} a6 {[%emt 0:12:58]} 9. a4 {[%emt 0:09:58]} b5 {[%emt 0:04:32]} 10. Qc2 {[%emt 0:09:55]} Bb7 {[%emt 0:01:19]} 11. axb5 {[%emt 0:00:24]} axb5 {[%emt 0:00:17]} 12. Rxa8 {[%emt 0:00:09]} Qxa8 {[%emt 0:02:04]} 13. Na3 {[%emt 0:02:26]} Qa6 {[%emt 0:14:08]} 14. d4 {[%emt 0:08:22]} c4 {[%emt 0:05:03]} 15. Ne1 {[%emt 0:05:55]} Bxg2 {[%emt 0:05:39]} 16. Nxg2 {[%emt 0:00:09]} Nb6 {[%emt 0:01:47]} 17. e4 {[%emt 0:00:50]} Bxa3 {[%emt 0:05:20]} 18. bxa3 {[%emt 0:00:03]} Qa4 {[%emt 0:00:48]} 19. Qxa4 {[%emt 0:02:11]} Nxa4 {[%emt 0:00:14]} 20. f3 {[%emt 0:00:07]} Kd7 {[%emt 0:01:42]} 21. Bd2 {[%emt 0:08:06]} c3 {[%emt 0:00:31]} 22. Be1 {[%emt 0:00:16]} Rc8 {[%emt 0:00:57]} 23. Rc1 {[%emt 0:00:47]} Ne8 {[%emt 0:06:30]} 24. Ne3 {[%emt 0:01:31]} Nd6 {[%emt 0:00:59]} 25. Kf2 {[%emt 0:00:50]} f5 {[%emt 0:02:58]} 26. exf5 {[%emt 0:05:07]} Nxf5 {[%emt 0:02:31]} 27. Nxf5 {[%emt 0:01:35]} exf5 {[%emt 0:00:03]} 28. Ke3 {[%emt 0:01:15]} Ke6 {[%emt 0:00:36]} 29. Kd3 {[%emt 0:00:52]} Nb2+ {[%emt 0:02:19]} 30. Kc2 {[%emt 0:03:20]} Nc4 {[%emt 0:02:41]} 31. Kb3 {[%emt 0:00:15]} Ra8 {[%emt 0:00:30]} 32. Bxc3 {[%emt 0:01:12]} Rxa3+ {[%emt 0:00:58]} 33. Kb4 {[%emt 0:00:00]} Kd5 {[%emt 0:01:02]} 34. Kxb5 {[%emt 0:00:42]} Ra7 {[%emt 0:01:26]} 35. Re1 {[%emt 0:01:12]} Rb7+ {[%emt 0:00:09]} 36. Ka4 {[%emt 0:00:21]} g6 {[%emt 0:00:26]} 37. Re8 {[%emt 0:00:11]} Nb2+ {[%emt 0:00:55]} 38. Ka3 {[%emt 0:00:53]} Nd1 {[%emt 0:00:28]} 39. Bb4 {[%emt 0:00:28]} Kxd4 {[%emt 0:00:43]} 40. Rd8+ {[%emt 0:00:25]} Kc4 {[%emt 0:00:03]} 41. Rxd1 {[%emt 0:01:56]} Ra7+ {[%emt 0:00:37]} 42. Kb2 {[%emt 0:00:13]} 1/2-1/2

[Event "Danish Skakligaen 2024-25"]
[Site "Denmark"]
[Date "2024.11.02"]
[Round "1.4"]
[White "Hoiberg, Nina"]
[Black "Aagaard, Jacob"]
[Result "0-1"]
[ECO "B32"]
[WhiteElo "2091"]
[BlackElo "2426"]
[Annotator "RC"]
[PlyCount "142"]
[EventDate "2024.11.02"]
[EventType "team-tourn"]
[EventCountry "DEN"]
[SourceTitle "playchess.com"]
[Source "ChessBase"]
[SourceQuality "1"]
[TimeControl "40/5400+30:1800+30"]

1. e4 {[%emt 0:00:03]} c5 {[%emt 0:00:03]} 2. Nf3 {[%emt 0:00:22]} Nc6 {[%emt 0:00:08]} 3. d4 {[%emt 0:00:20]} cxd4 {[%emt 0:00:06]} 4. Nxd4 {[%emt 0:00:16]} Qb6 {[%emt 0:00:29]} 5. Nb3 {[%emt 0:03:04]} Nf6 {[%emt 0:00:08]} 6. Nc3 {[%emt 0:01:50]} e6 {[%emt 0:00:02]} 7. Be3 {[%emt 0:01:17]} Qc7 {[%emt 0:00:02]} 8. Be2 {[%emt 0:08:45]} Bb4 {[%emt 0:01:41]} 9. O-O {[%emt 0:02:34]} Bxc3 {[%emt 0:01:27]} 10. bxc3 {[%emt 0:00:05]} Nxe4 {[%emt 0:00:15]} 11. Qd3 {[%emt 0:01:37]} f5 {[%emt 0:05:47]} 12. Nc5 {[%emt 0:11:18]} Nf6 {[%emt 0:03:07]} 13. Qc4 {[%emt 0:17:17]} Ne5 {[%emt 0:04:53]} 14. Bf4 {[%emt 0:06:34]} Nxc4 {[%emt 0:14:58]} 15. Bxc7 {[%emt 0:00:08]} Nd5 {[%emt 0:00:24]} 16. Bg3 {[%emt 0:01:57]} Na3 {[%emt 0:01:32]} 17. Bh5+ {[%emt 0:06:33]} Ke7 {[%emt 0:12:54]} 18. Bf3 {[%emt 0:02:47]} f4 {[%emt 0:01:04]} 19. Bh4+ {[%emt 0:07:53]} Kd6 {[%emt 0:01:09]} 20. Ne4+ {[%emt 0:04:46]} Kc7 {[%emt 0:01:09]} 21. g3 {[%emt 0:00:46]} Nc4 {[%emt 0:07:07]} 22. Be2 {[%emt 0:06:49]} Ne5 {[%emt 0:01:13]} 23. c4 {[%emt 0:00:20]} f3 {[%emt 0:01:40]} 24. Bd1 {[%emt 0:02:03]} Nb6 {[%emt 0:00:56]} 25. c5 {[%emt 0:01:22]} Nbc4 {[%emt 0:00:38]} 26. Nd6 {[%emt 0:01:56]} Nxd6 {[%emt 0:01:00]} 27. cxd6+ {[%emt 0:00:11]} Kxd6 {[%emt 0:00:01]} 28. c4 {[%emt 0:01:59]} Ng6 {[%emt 0:03:30]} 29. Bg5 {[%emt 0:01:10]} Rf8 {[%emt 0:01:22]} 30. Bc2 {[%emt 0:01:23]} Kc7 {[%emt 0:07:11]} 31. Be4 {[%emt 0:01:45]} d6 32. Rab1 {[%emt 0:00:34]} Ne5 {[%emt 0:05:21]} 33. c5 {[%emt 0:00:36]} d5 {[%emt 0:02:12]} 34. Be7 {[%emt 0:00:25]} dxe4 {[%emt 0:03:15]} 35. Bxf8 {[%emt 0:00:10]} Nd3 {[%emt 0:00:33]} 36. Rfe1 {[%emt 0:02:48]} Nxe1 {[%emt 0:03:18]} 37. Rxe1 {[%emt 0:00:05]} Bd7 {[%emt 0:01:31]} 38. Bd6+ {[%emt 0:00:05]} Kc6 {[%emt 0:00:21]} 39. Rxe4 {[%emt 0:00:16]} b6 {[%emt 0:04:37]} 40. Re3 {[%emt 0:01:35]} bxc5 {[%emt 0:01:02]} 41. Be5 {[%emt 0:31:06]} Rf8 {[%emt 0:30:38]} 42. Bxg7 {[%emt 0:00:33]} Rf7 {[%emt 0:00:32]} 43. Be5 {[%emt 0:00:00]} Kb5 {[%emt 0:00:00]} 44. Kf1 {[%emt 0:00:00]} Bc6 {[%emt 0:00:00]} 45. Rb3+ {[%emt 0:00:00]} Kc4 {[%emt 0:00:00]} 46. Ke1 {[%emt 0:00:00]} Rf5 {[%emt 0:00:00]} 47. Rc3+ {[%emt 0:00:00]} Kd5 {[%emt 0:00:00]} 48. Bb8 {[%emt 0:00:00]} Rf7 {[%emt 0:00:00]} 49. Kd2 {[%emt 0:01:35]} c4 {[%emt 0:00:00]} 50. Ra3 {[%emt 0:00:16]} Rb7 {[%emt 0:00:00]} 51. Bxa7 {[%emt 0:01:12]} e5 {[%emt 0:00:00]} 52. Ra5+ {[%emt 0:01:06]} Ke4 {[%emt 0:00:00]} 53. Ra3 {[%emt 0:01:32]} Bd5 {[%emt 0:00:00]} 54. Be3 {[%emt 0:00:43]} h5 {[%emt 0:00:00]} 55. h4 {[%emt 0:00:12]} Rb2+ {[%emt 0:00:00]} 56. Kc3 {[%emt 0:00:10]} Re2 {[%emt 0:00:00]} 57. Bc5 {[%emt 0:00:54]} Kf5 {[%emt 0:00:00]} 58. Ra7 {[%emt 0:00:51]} e4 {[%emt 0:00:00]} 59. Rd7 {[%emt 0:01:05]} Be6 {[%emt 0:00:00]} 60. Rd2 {[%emt 0:00:12]} Re1 {[%emt 0:00:00]} 61. Be3 {[%emt 0:01:12]} Rxe3+ {[%emt 0:00:53]} 62. fxe3 {[%emt 0:00:52]} Kg4 {[%emt 0:00:20]} 63. a4 {[%emt 0:02:09]} Kxg3 {[%emt 0:00:34]} 64. a5 {[%emt 0:00:17]} f2 {[%emt 0:00:32]} 65. Rd1 {[%emt 0:00:14]} Kg2 {[%emt 0:02:47]} 66. Kd4 {[%emt 0:00:13]} f1=Q {[%emt 0:00:34]} 67. Rxf1 {[%emt 0:00:08]} Kxf1 {[%emt 0:00:02]} 68. Kxe4 {[%emt 0:00:11]} Ke2 {[%emt 0:01:45]} 69. Kd4 {[%emt 0:00:15]} c3 {[%emt 0:01:55]} 70. a6 {[%emt 0:00:16]} Bc8 {[%emt 0:00:06]} 71. Kxc3 {[%emt 0:01:01]} Kxe3 {[%emt 0:00:02]} 0-1